[Event "Titled Tuesday Blitz January 10 Early 2023"]
[White "Boyer, Mahel"]
[Black "Berezin, Viktor"]
[WhiteFideId "45102422"]
[BlackFideId "14107872"]
[WhiteElo "2489"]
[BlackElo "2307"]
[Result "0-1"]
[Round "08"]
[TimeControl "180+2"]
[Date "2023.01.10"]
[WhiteClock "0:00:02"]
[BlackClock "0:00:03"]

1. d4 {[%clk 0:02:48]}  Nf6 {[%clk 0:02:58]} 2. Bf4 {[%clk 0:02:49]}  g6 {[%clk 0:02:57]} 3. f3 {[%clk 0:02:47]}  d6 {[%clk 0:02:57]} 4. e4 {[%clk 0:02:48]}  Bg7 {[%clk 0:02:57]} 5. Nc3 {[%clk 0:02:46]}  O-O {[%clk 0:02:57]} 6. Qd2 {[%clk 0:02:47]}  Nbd7 {[%clk 0:02:55]} 7. Bh6 {[%clk 0:02:46]}  e5 {[%clk 0:02:55]} 8. Bxg7 {[%clk 0:02:46]}  Kxg7 {[%clk 0:02:55]} 9. Nge2 {[%clk 0:02:46]}  c6 {[%clk 0:02:55]} 10. h4 {[%clk 0:02:46]}  h5 {[%clk 0:02:54]} 11. O-O-O {[%clk 0:02:41]}  b5 {[%clk 0:02:52]} 12. g4 {[%clk 0:02:39]}  b4 {[%clk 0:02:43]} 13. Nb1 {[%clk 0:02:39]}  hxg4 {[%clk 0:02:40]} 14. h5 {[%clk 0:02:39]}  Rh8 {[%clk 0:02:17]} 15. h6+ {[%clk 0:02:18]}  Kh7 {[%clk 0:02:12]} 16. Qxb4 {[%clk 0:02:19]}  gxf3 {[%clk 0:02:06]} 17. Ng3 {[%clk 0:02:20]}  c5 {[%clk 0:01:56]} 18. dxc5 {[%clk 0:01:54]}  Nxc5 {[%clk 0:01:54]} 19. Nc3 {[%clk 0:01:48]}  Be6 {[%clk 0:01:48]} 20. Bh3 {[%clk 0:01:42]}  Rb8 {[%clk 0:01:41]} 21. Qa3 {[%clk 0:01:41]}  Bxh3 {[%clk 0:01:30]} 22. Rxh3 {[%clk 0:01:42]}  Qd7 {[%clk 0:01:29]} 23. Rhh1 {[%clk 0:01:31]}  Qg4 {[%clk 0:01:27]} 24. Rxd6 {[%clk 0:01:29]}  Ncxe4 {[%clk 0:00:50]} 25. Ngxe4 {[%clk 0:01:30]}  Nxe4 {[%clk 0:00:50]} 26. Nxe4 {[%clk 0:01:21]}  Qxe4 {[%clk 0:00:49]} 27. Rf6 {[%clk 0:01:21]}  Rb7 {[%clk 0:00:40]} 28. Qxf3 {[%clk 0:00:41]}  Qxf3 {[%clk 0:00:39]} 29. Rxf3 {[%clk 0:00:42]}  f5 {[%clk 0:00:39]} 30. Ra3 {[%clk 0:00:22]}  Rc8 {[%clk 0:00:30]} 31. Ra6 {[%clk 0:00:18]}  Rcc7 {[%clk 0:00:15]} 32. b3 {[%clk 0:00:16]}  e4 {[%clk 0:00:15]} 33. c4 {[%clk 0:00:16]}  Rb6 {[%clk 0:00:15]} 34. Ra5 {[%clk 0:00:13]}  Rf6 {[%clk 0:00:12]} 35. Re5 {[%clk 0:00:12]}  g5 {[%clk 0:00:08]} 36. Rf1 {[%clk 0:00:11]}  Kg6 {[%clk 0:00:08]} 37. Kd2 {[%clk 0:00:09]}  Rh7 {[%clk 0:00:06]} 38. c5 {[%clk 0:00:08]}  Rxh6 {[%clk 0:00:06]} 39. b4 {[%clk 0:00:08]}  Rh2+ {[%clk 0:00:06]} 40. Kc3 {[%clk 0:00:08]}  Rh3+ {[%clk 0:00:05]} 41. Kc4 {[%clk 0:00:08]}  e3 {[%clk 0:00:04]} 42. b5 {[%clk 0:00:07]}  f4 {[%clk 0:00:04]} 43. c6 {[%clk 0:00:07]}  Rf8 {[%clk 0:00:02]} 44. c7 {[%clk 0:00:07]}  Rh2 {[%clk 0:00:02]} 45. Rc5 {[%clk 0:00:06]}  Rc2+ {[%clk 0:00:02]} 46. Kd5 {[%clk 0:00:07]}  Rxc5+ {[%clk 0:00:02]} 47. Kxc5 {[%clk 0:00:07]}  e2 {[%clk 0:00:03]} 48. Rc1 {[%clk 0:00:03]}  f3 {[%clk 0:00:03]} 49. Kd4 {[%clk 0:00:03]}  f2 {[%clk 0:00:03]} 50. Rc6+ {[%clk 0:00:02]}  Kg7 {[%clk 0:00:03]} 51. c8=Q {[%clk 0:00:01]}  Rxc8 {[%clk 0:00:03]} 52. Rc7+ {[%clk 0:00:02]}  Rxc7 {[%clk 0:00:03]} 0-1


[Site "https://www.chess.com"]

[Event "Titled Tuesday Blitz January 10 Early 2023"]
[White "Korchmar, Vasiliy"]
[Black "Gheorghiu, Calin"]
[WhiteFideId "24131750"]
[BlackFideId "1200305"]
[WhiteElo "2438"]
[BlackElo "2313"]
[Result "1-0"]
[Round "08"]
[TimeControl "180+2"]
[Date "2023.01.10"]
[WhiteClock "0:01:37"]
[BlackClock "0:00:13"]

1. Nf3 {[%clk 0:03:00]}  b6 {[%clk 0:02:34]} 2. g3 {[%clk 0:02:58]}  Bb7 {[%clk 0:02:29]} 3. Bg2 {[%clk 0:02:59]}  g6 {[%clk 0:02:28]} 4. b3 {[%clk 0:02:56]}  Bg7 {[%clk 0:02:28]} 5. Nc3 {[%clk 0:02:56]}  d6 {[%clk 0:02:19]} 6. O-O {[%clk 0:02:56]}  e5 {[%clk 0:02:17]} 7. a4 {[%clk 0:02:50]}  a6 {[%clk 0:02:14]} 8. d4 {[%clk 0:02:46]}  exd4 {[%clk 0:02:08]} 9. Nxd4 {[%clk 0:02:46]}  Bxg2 {[%clk 0:02:06]} 10. Kxg2 {[%clk 0:02:47]}  c5 {[%clk 0:02:03]} 11. e3 {[%clk 0:02:36]}  cxd4 {[%clk 0:02:03]} 12. exd4 {[%clk 0:02:37]}  Ne7 {[%clk 0:02:02]} 13. Qf3 {[%clk 0:02:32]}  Ra7 {[%clk 0:01:54]} 14. Bg5 {[%clk 0:02:32]}  O-O {[%clk 0:01:48]} 15. Nd5 {[%clk 0:02:29]}  Nbc6 {[%clk 0:01:33]} 16. Bf6 {[%clk 0:02:08]}  Bxf6 {[%clk 0:00:51]} 17. Nxf6+ {[%clk 0:02:07]}  Kg7 {[%clk 0:00:51]} 18. Rad1 {[%clk 0:01:42]}  Nf5 {[%clk 0:00:47]} 19. Nh5+ {[%clk 0:01:40]}  gxh5 {[%clk 0:00:44]} 20. Qxf5 {[%clk 0:01:41]}  Qf6 {[%clk 0:00:41]} 21. Qxh5 {[%clk 0:01:40]}  Nxd4 {[%clk 0:00:41]} 22. Qg4+ {[%clk 0:01:40]}  Kh8 {[%clk 0:00:38]} 23. Qxd4 {[%clk 0:01:41]}  Qxd4 {[%clk 0:00:37]} 24. Rxd4 {[%clk 0:01:42]}  Rc7 {[%clk 0:00:33]} 25. Rxd6 {[%clk 0:01:40]}  b5 {[%clk 0:00:31]} 26. a5 {[%clk 0:01:39]}  Ra8 {[%clk 0:00:27]} 27. Rc1 {[%clk 0:01:38]}  Kg7 {[%clk 0:00:27]} 28. c4 {[%clk 0:01:38]}  bxc4 {[%clk 0:00:27]} 29. bxc4 {[%clk 0:01:39]}  Rac8 {[%clk 0:00:27]} 30. Rxa6 {[%clk 0:01:38]}  Rxc4 {[%clk 0:00:27]} 31. Rxc4 {[%clk 0:01:39]}  Rxc4 {[%clk 0:00:27]} 32. Ra8 {[%clk 0:01:40]}  Ra4 {[%clk 0:00:28]} 33. a6 {[%clk 0:01:40]}  Ra3 {[%clk 0:00:29]} 34. g4 {[%clk 0:01:39]}  Ra4 {[%clk 0:00:21]} 35. h3 {[%clk 0:01:39]}  Ra3 {[%clk 0:00:22]} 36. f3 {[%clk 0:01:39]}  Ra4 {[%clk 0:00:23]} 37. Kg3 {[%clk 0:01:39]}  Ra3 {[%clk 0:00:23]} 38. h4 {[%clk 0:01:38]}  h6 {[%clk 0:00:16]} 39. g5 {[%clk 0:01:35]}  hxg5 {[%clk 0:00:16]} 40. hxg5 {[%clk 0:01:36]}  f6 {[%clk 0:00:17]} 41. gxf6+ {[%clk 0:01:35]}  Kxf6 {[%clk 0:00:17]} 42. a7 {[%clk 0:01:34]}  Kg7 {[%clk 0:00:17]} 43. Kg4 {[%clk 0:01:35]}  Ra4+ {[%clk 0:00:17]} 44. f4 {[%clk 0:01:35]}  Ra1 {[%clk 0:00:16]} 45. f5 {[%clk 0:01:35]}  Rg1+ {[%clk 0:00:14]} 46. Kf3 {[%clk 0:01:36]}  Rf1+ {[%clk 0:00:14]} 47. Ke2 {[%clk 0:01:36]}  Ra1 {[%clk 0:00:13]} 48. f6+ {[%clk 0:01:37]} 1-0


[Site "https://www.chess.com"]

[Event "Titled Tuesday Blitz January 10 Early 2023"]
[White "Estrada Nieto, Julian"]
[Black "Djokovic, Nebojsa"]
[WhiteFideId "5101018"]
[BlackFideId "938300"]
[WhiteElo "2215"]
[BlackElo "2119"]
[Result "0-1"]
[Round "08"]
[TimeControl "180+2"]
[Date "2023.01.10"]
[WhiteClock "0:00:06"]
[BlackClock "0:00:10"]

1. e4 {[%clk 0:03:00]}  e6 {[%clk 0:03:00]} 2. d4 {[%clk 0:03:00]}  d5 {[%clk 0:03:01]} 3. Nd2 {[%clk 0:03:00]}  c5 {[%clk 0:02:59]} 4. exd5 {[%clk 0:03:00]}  Qxd5 {[%clk 0:03:00]} 5. Ngf3 {[%clk 0:03:01]}  cxd4 {[%clk 0:02:59]} 6. Bc4 {[%clk 0:03:02]}  Qd8 {[%clk 0:03:00]} 7. O-O {[%clk 0:03:03]}  Nc6 {[%clk 0:02:59]} 8. Nb3 {[%clk 0:03:03]}  a6 {[%clk 0:03:00]} 9. Nbxd4 {[%clk 0:03:03]}  Nxd4 {[%clk 0:03:01]} 10. Nxd4 {[%clk 0:03:03]}  Qc7 {[%clk 0:03:01]} 11. Bb3 {[%clk 0:03:03]}  Bd6 {[%clk 0:03:00]} 12. h3 {[%clk 0:03:03]}  Ne7 {[%clk 0:02:57]} 13. c3 {[%clk 0:02:46]}  O-O {[%clk 0:02:57]} 14. Bc2 {[%clk 0:02:41]}  Ng6 {[%clk 0:02:57]} 15. Qh5 {[%clk 0:02:38]}  Bf4 {[%clk 0:02:29]} 16. Nf3 {[%clk 0:02:37]}  Bxc1 {[%clk 0:02:27]} 17. Raxc1 {[%clk 0:02:37]}  Qf4 {[%clk 0:02:28]} 18. Rcd1 {[%clk 0:02:09]}  b5 {[%clk 0:02:18]} 19. Rd4 {[%clk 0:02:03]}  Qf6 {[%clk 0:02:13]} 20. Ng5 {[%clk 0:01:48]}  h6 {[%clk 0:02:09]} 21. Ne4 {[%clk 0:01:45]}  Qe7 {[%clk 0:01:44]} 22. Nd6 {[%clk 0:01:39]}  e5 {[%clk 0:01:44]} 23. Rdd1 {[%clk 0:01:14]}  Qf6 {[%clk 0:01:05]} 24. Rfe1 {[%clk 0:00:59]}  Ra7 {[%clk 0:00:59]} 25. Bb3 {[%clk 0:00:40]}  Be6 {[%clk 0:00:48]} 26. Ne4 {[%clk 0:00:38]}  Qe7 {[%clk 0:00:45]} 27. Bxe6 {[%clk 0:00:31]}  Qxe6 {[%clk 0:00:45]} 28. a3 {[%clk 0:00:26]}  Rc8 {[%clk 0:00:35]} 29. b4 {[%clk 0:00:15]}  Rac7 {[%clk 0:00:29]} 30. Nc5 {[%clk 0:00:15]}  Rxc5 {[%clk 0:00:29]} 31. bxc5 {[%clk 0:00:15]}  Rxc5 {[%clk 0:00:30]} 32. Qf3 {[%clk 0:00:14]}  Kh7 {[%clk 0:00:18]} 33. Qd3 {[%clk 0:00:14]}  Qc6 {[%clk 0:00:17]} 34. Re3 {[%clk 0:00:12]}  Rc4 {[%clk 0:00:15]} 35. g3 {[%clk 0:00:11]}  e4 {[%clk 0:00:15]} 36. Qc2 {[%clk 0:00:10]}  Ne5 {[%clk 0:00:15]} 37. Rde1 {[%clk 0:00:09]}  Nd3 {[%clk 0:00:12]} 38. Rxe4 {[%clk 0:00:07]}  Rxe4 {[%clk 0:00:06]} 39. Qxd3 {[%clk 0:00:06]}  f5 {[%clk 0:00:06]} 40. Rxe4 {[%clk 0:00:06]}  fxe4 {[%clk 0:00:07]} 41. Qd4 {[%clk 0:00:07]}  Qe6 {[%clk 0:00:07]} 42. Qe3 {[%clk 0:00:06]}  Qc4 {[%clk 0:00:07]} 43. h4 {[%clk 0:00:06]}  Kg6 {[%clk 0:00:07]} 44. Kg2 {[%clk 0:00:06]}  Kf7 {[%clk 0:00:06]} 45. Qf4+ {[%clk 0:00:06]}  Kg8 {[%clk 0:00:05]} 46. Qe5 {[%clk 0:00:06]}  Qc6 {[%clk 0:00:03]} 47. Kh2 {[%clk 0:00:06]}  a5 {[%clk 0:00:02]} 48. h5 {[%clk 0:00:06]}  a4 {[%clk 0:00:03]} 49. Qd4 {[%clk 0:00:06]}  Qe8 {[%clk 0:00:01]} 50. Kg2 {[%clk 0:00:05]}  Kh7 {[%clk 0:00:01]} 51. Qc5 {[%clk 0:00:05]}  Kh8 {[%clk 0:00:01]} 52. Qf5 {[%clk 0:00:05]}  Kg8 {[%clk 0:00:02]} 53. Qd5+ {[%clk 0:00:04]}  Kh7 {[%clk 0:00:02]} 54. Qc5 {[%clk 0:00:04]}  Qd7 {[%clk 0:00:02]} 55. Qd4 {[%clk 0:00:04]}  Qxd4 {[%clk 0:00:02]} 56. cxd4 {[%clk 0:00:04]}  b4 {[%clk 0:00:03]} 57. axb4 {[%clk 0:00:04]}  a3 {[%clk 0:00:03]} 58. d5 {[%clk 0:00:04]}  a2 {[%clk 0:00:04]} 59. d6 {[%clk 0:00:05]}  a1=Q {[%clk 0:00:05]} 60. d7 {[%clk 0:00:05]}  Qa8 {[%clk 0:00:06]} 61. b5 {[%clk 0:00:05]}  Qd8 {[%clk 0:00:07]} 62. b6 {[%clk 0:00:04]}  Qxd7 {[%clk 0:00:08]} 63. b7 {[%clk 0:00:05]}  Qxb7 {[%clk 0:00:09]} 64. g4 {[%clk 0:00:05]}  Qf7 {[%clk 0:00:09]} 65. Kg3 {[%clk 0:00:05]}  Qf3+ {[%clk 0:00:10]} 66. Kh4 {[%clk 0:00:06]}  e3 {[%clk 0:00:10]} 67. fxe3 {[%clk 0:00:06]}  Qxe3 {[%clk 0:00:11]} 68. g5 {[%clk 0:00:06]}  Qxg5+ {[%clk 0:00:10]} 0-1


[Site "https://www.chess.com"]

[Event "Titled Tuesday Blitz January 10 Early 2023"]
[White "Kamalidenova, Meruert"]
[Black "Maksimenko, Viktor"]
[WhiteFideId "13712802"]
[BlackFideId "13710478"]
[WhiteElo "2350"]
[BlackElo "2196"]
[Result "0-1"]
[Round "08"]
[TimeControl "180+2"]
[Date "2023.01.10"]
[WhiteClock "0:01:12"]
[BlackClock "0:01:29"]

1. c4 {[%clk 0:03:00]}  e5 {[%clk 0:02:59]} 2. Nc3 {[%clk 0:02:59]}  Bb4 {[%clk 0:02:59]} 3. g3 {[%clk 0:02:58]}  Bxc3 {[%clk 0:02:58]} 4. bxc3 {[%clk 0:02:55]}  d6 {[%clk 0:02:58]} 5. Bg2 {[%clk 0:02:54]}  Ne7 {[%clk 0:02:57]} 6. d4 {[%clk 0:02:53]}  f6 {[%clk 0:02:56]} 7. e4 {[%clk 0:02:51]}  O-O {[%clk 0:02:56]} 8. Ne2 {[%clk 0:02:51]}  Be6 {[%clk 0:02:50]} 9. Qb3 {[%clk 0:02:44]}  b6 {[%clk 0:02:48]} 10. O-O {[%clk 0:02:44]}  Nbc6 {[%clk 0:02:48]} 11. Qa4 {[%clk 0:02:34]}  Bd7 {[%clk 0:02:46]} 12. Qc2 {[%clk 0:02:31]}  Na5 {[%clk 0:02:43]} 13. c5 {[%clk 0:02:31]}  dxc5 {[%clk 0:02:39]} 14. dxc5 {[%clk 0:02:31]}  Be6 {[%clk 0:02:38]} 15. Rd1 {[%clk 0:02:29]}  Qe8 {[%clk 0:02:36]} 16. f4 {[%clk 0:02:23]}  Nec6 {[%clk 0:02:29]} 17. f5 {[%clk 0:02:22]}  Bc4 {[%clk 0:02:12]} 18. cxb6 {[%clk 0:02:22]}  axb6 {[%clk 0:02:11]} 19. Ba3 {[%clk 0:02:20]}  Rf7 {[%clk 0:02:11]} 20. Nc1 {[%clk 0:02:18]}  Rd7 {[%clk 0:02:10]} 21. Nb3 {[%clk 0:02:11]}  Bf7 {[%clk 0:02:06]} 22. Rxd7 {[%clk 0:02:05]}  Qxd7 {[%clk 0:02:05]} 23. Rd1 {[%clk 0:02:00]}  Qe8 {[%clk 0:02:03]} 24. Bc1 {[%clk 0:01:55]}  Nc4 {[%clk 0:01:59]} 25. Bf1 {[%clk 0:01:54]}  N6a5 {[%clk 0:01:55]} 26. Nxa5 {[%clk 0:01:51]}  Nxa5 {[%clk 0:01:46]} 27. c4 {[%clk 0:01:46]}  Qc6 {[%clk 0:01:45]} 28. c5 {[%clk 0:01:36]}  Nb7 {[%clk 0:01:43]} 29. Bc4 {[%clk 0:01:30]}  Qxc5+ {[%clk 0:01:38]} 30. Kg2 {[%clk 0:01:22]}  Qxc4 {[%clk 0:01:38]} 31. Qxc4 {[%clk 0:01:22]}  Bxc4 {[%clk 0:01:39]} 32. a3 {[%clk 0:01:23]}  Nd6 {[%clk 0:01:38]} 33. Kf3 {[%clk 0:01:22]}  Bb3 {[%clk 0:01:38]} 34. Rd2 {[%clk 0:01:19]}  Kf7 {[%clk 0:01:36]} 35. g4 {[%clk 0:01:16]}  Ke7 {[%clk 0:01:36]} 36. h4 {[%clk 0:01:16]}  Kd7 {[%clk 0:01:36]} 37. g5 {[%clk 0:01:16]}  Bf7 {[%clk 0:01:36]} 38. Rd3 {[%clk 0:01:15]}  Ra4 {[%clk 0:01:31]} 39. Re3 {[%clk 0:01:13]}  Bh5+ {[%clk 0:01:29]} 40. Kg2 {[%clk 0:01:12]}  Rxe4 {[%clk 0:01:29]} 0-1


[Site "https://www.chess.com"]

[Event "Titled Tuesday Blitz January 10 Early 2023"]
[White "Tarasova, Viktoriya"]
[Black "Golubev, Mikhail"]
[WhiteFideId "4175840"]
[BlackFideId "14100983"]
[WhiteElo "2226"]
[BlackElo "2461"]
[Result "0-1"]
[Round "08"]
[TimeControl "180+2"]
[Date "2023.01.10"]
[WhiteClock "0:00:07"]
[BlackClock "0:00:16"]

1. d4 {[%clk 0:03:00]}  g6 {[%clk 0:02:53]} 2. c4 {[%clk 0:02:58]}  Bg7 {[%clk 0:02:53]} 3. e4 {[%clk 0:02:59]}  d6 {[%clk 0:02:53]} 4. Nc3 {[%clk 0:02:59]}  Nc6 {[%clk 0:02:52]} 5. Be3 {[%clk 0:02:58]}  e5 {[%clk 0:02:50]} 6. Nge2 {[%clk 0:02:57]}  exd4 {[%clk 0:02:39]} 7. Nxd4 {[%clk 0:02:56]}  Nf6 {[%clk 0:02:39]} 8. Be2 {[%clk 0:02:54]}  O-O {[%clk 0:02:39]} 9. O-O {[%clk 0:02:52]}  Re8 {[%clk 0:02:39]} 10. Nxc6 {[%clk 0:02:45]}  bxc6 {[%clk 0:02:39]} 11. Qc2 {[%clk 0:02:45]}  c5 {[%clk 0:02:16]} 12. Rad1 {[%clk 0:02:42]}  Bb7 {[%clk 0:02:05]} 13. Bd3 {[%clk 0:02:42]}  Ng4 {[%clk 0:01:58]} 14. Bf4 {[%clk 0:02:31]}  g5 {[%clk 0:01:47]} 15. Bg3 {[%clk 0:02:30]}  h5 {[%clk 0:01:47]} 16. h3 {[%clk 0:02:30]}  h4 {[%clk 0:01:45]} 17. Bh2 {[%clk 0:02:15]}  Nxh2 {[%clk 0:01:43]} 18. Kxh2 {[%clk 0:02:15]}  Be5+ {[%clk 0:01:39]} 19. Kg1 {[%clk 0:02:15]}  Qf6 {[%clk 0:01:39]} 20. Ne2 {[%clk 0:02:00]}  Bc8 {[%clk 0:01:15]} 21. f4 {[%clk 0:01:40]}  gxf4 {[%clk 0:01:11]} 22. Qd2 {[%clk 0:01:38]}  Bxb2 {[%clk 0:00:58]} 23. Nxf4 {[%clk 0:01:33]}  Bd4+ {[%clk 0:00:56]} 24. Kh1 {[%clk 0:01:31]}  Qg5 {[%clk 0:00:55]} 25. Rf3 {[%clk 0:01:09]}  Rb8 {[%clk 0:00:49]} 26. Rdf1 {[%clk 0:00:21]}  Rb2 {[%clk 0:00:48]} 27. Qe1 {[%clk 0:00:22]}  Rxa2 {[%clk 0:00:29]} 28. g3 {[%clk 0:00:22]}  Ra1 {[%clk 0:00:25]} 29. gxh4 {[%clk 0:00:11]}  Rxe1 {[%clk 0:00:22]} 30. hxg5 {[%clk 0:00:10]}  Rxf1+ {[%clk 0:00:22]} 31. Rxf1 {[%clk 0:00:10]}  Bb7 {[%clk 0:00:22]} 32. Nd5 {[%clk 0:00:08]}  Bxd5 {[%clk 0:00:20]} 33. cxd5 {[%clk 0:00:08]}  a5 {[%clk 0:00:20]} 34. Kg2 {[%clk 0:00:05]}  a4 {[%clk 0:00:20]} 35. Kf3 {[%clk 0:00:06]}  a3 {[%clk 0:00:20]} 36. Bc4 {[%clk 0:00:07]}  Rb8 {[%clk 0:00:18]} 37. h4 {[%clk 0:00:06]}  Rb4 {[%clk 0:00:17]} 38. Rc1 {[%clk 0:00:05]}  Bb2 {[%clk 0:00:15]} 39. Rc2 {[%clk 0:00:06]}  Rxc4 {[%clk 0:00:15]} 40. Rxc4 {[%clk 0:00:06]}  a2 {[%clk 0:00:16]} 41. Ra4 {[%clk 0:00:07]}  a1=Q {[%clk 0:00:16]} 42. Rxa1 {[%clk 0:00:07]}  Bxa1 {[%clk 0:00:16]} 0-1


[Site "https://www.chess.com"]

[Event "Titled Tuesday Blitz January 10 Early 2023"]
[White "Mendez Fortes, Eduardo Jesus"]
[Black "Gaitan, Juan Manuel"]
[WhiteFideId "3502376"]
[BlackFideId "121657"]
[WhiteElo "2250"]
[BlackElo "2328"]
[Result "0-1"]
[Round "08"]
[TimeControl "180+2"]
[Date "2023.01.10"]
[WhiteClock "0:00:02"]
[BlackClock "0:00:17"]

1. e4 {[%clk 0:03:00]}  e5 {[%clk 0:02:58]} 2. Nf3 {[%clk 0:03:01]}  Nf6 {[%clk 0:02:58]} 3. d4 {[%clk 0:03:00]}  Nxe4 {[%clk 0:02:58]} 4. Bd3 {[%clk 0:03:00]}  Nc6 {[%clk 0:02:59]} 5. O-O {[%clk 0:02:49]}  d5 {[%clk 0:02:57]} 6. Nxe5 {[%clk 0:02:41]}  Nxe5 {[%clk 0:02:49]} 7. dxe5 {[%clk 0:02:41]}  Nc5 {[%clk 0:02:49]} 8. Nc3 {[%clk 0:02:39]}  c6 {[%clk 0:02:43]} 9. b3 {[%clk 0:02:28]}  Be7 {[%clk 0:02:42]} 10. Bb2 {[%clk 0:02:26]}  O-O {[%clk 0:02:42]} 11. f4 {[%clk 0:02:22]}  a5 {[%clk 0:02:39]} 12. a4 {[%clk 0:02:20]}  f5 {[%clk 0:02:26]} 13. Ne2 {[%clk 0:02:15]}  Ne4 {[%clk 0:02:24]} 14. c4 {[%clk 0:02:08]}  Bc5+ {[%clk 0:02:18]} 15. Bd4 {[%clk 0:02:06]}  Nc3 {[%clk 0:02:15]} 16. Qd2 {[%clk 0:02:03]}  Nxe2+ {[%clk 0:02:12]} 17. Bxe2 {[%clk 0:02:03]}  dxc4 {[%clk 0:02:11]} 18. Bxc4+ {[%clk 0:01:58]}  Kh8 {[%clk 0:02:11]} 19. Rad1 {[%clk 0:01:58]}  Qe7 {[%clk 0:02:07]} 20. Bxc5 {[%clk 0:01:56]}  Qxc5+ {[%clk 0:02:08]} 21. Qf2 {[%clk 0:01:57]}  Qe7 {[%clk 0:02:00]} 22. Rd6 {[%clk 0:01:54]}  Bd7 {[%clk 0:02:00]} 23. Rfd1 {[%clk 0:01:51]}  Be8 {[%clk 0:01:52]} 24. Qb6 {[%clk 0:01:37]}  Bh5 {[%clk 0:01:47]} 25. R1d2 {[%clk 0:01:34]}  Be8 {[%clk 0:01:43]} 26. Rd8 {[%clk 0:01:25]}  Rxd8 {[%clk 0:01:41]} 27. Rxd8 {[%clk 0:01:26]}  Qa3 {[%clk 0:01:27]} 28. Qxa5 {[%clk 0:01:21]}  Qc1+ {[%clk 0:01:25]} 29. Bf1 {[%clk 0:01:19]}  Qxf4 {[%clk 0:01:24]} 30. Qc5 {[%clk 0:01:14]}  Rg8 {[%clk 0:01:20]} 31. Qd4 {[%clk 0:00:49]}  Qxd4+ {[%clk 0:00:59]} 32. Rxd4 {[%clk 0:00:50]}  Bf7 {[%clk 0:00:59]} 33. b4 {[%clk 0:00:49]}  Be6 {[%clk 0:00:59]} 34. Rd6 {[%clk 0:00:46]}  Re8 {[%clk 0:00:59]} 35. a5 {[%clk 0:00:45]}  Kg8 {[%clk 0:00:56]} 36. a6 {[%clk 0:00:43]}  bxa6 {[%clk 0:00:53]} 37. Rxc6 {[%clk 0:00:43]}  Bd5 {[%clk 0:00:50]} 38. Rd6 {[%clk 0:00:40]}  Bb3 {[%clk 0:00:48]} 39. Bxa6 {[%clk 0:00:38]}  Rxe5 {[%clk 0:00:47]} 40. b5 {[%clk 0:00:38]}  Bc4 {[%clk 0:00:46]} 41. Rb6 {[%clk 0:00:33]}  Kf8 {[%clk 0:00:43]} 42. Rb8+ {[%clk 0:00:32]}  Ke7 {[%clk 0:00:43]} 43. Kf2 {[%clk 0:00:32]}  g5 {[%clk 0:00:42]} 44. g3 {[%clk 0:00:32]}  h5 {[%clk 0:00:41]} 45. Ra8 {[%clk 0:00:22]}  Bxb5 {[%clk 0:00:40]} 46. Ra7+ {[%clk 0:00:21]}  Kf6 {[%clk 0:00:39]} 47. Bc8 {[%clk 0:00:20]}  Re2+ {[%clk 0:00:37]} 48. Kg1 {[%clk 0:00:20]}  Rc2 {[%clk 0:00:33]} 49. Bd7 {[%clk 0:00:16]}  Bd3 {[%clk 0:00:31]} 50. Ra3 {[%clk 0:00:14]}  Be4 {[%clk 0:00:31]} 51. Ra6+ {[%clk 0:00:12]}  Ke7 {[%clk 0:00:28]} 52. Bb5 {[%clk 0:00:10]}  Rg2+ {[%clk 0:00:28]} 53. Kf1 {[%clk 0:00:09]}  Rxh2 {[%clk 0:00:28]} 54. Rg6 {[%clk 0:00:09]}  g4 {[%clk 0:00:25]} 55. Rg5 {[%clk 0:00:10]}  Kf6 {[%clk 0:00:24]} 56. Rg8 {[%clk 0:00:10]}  Rb2 {[%clk 0:00:23]} 57. Be2 {[%clk 0:00:08]}  Ke5 {[%clk 0:00:22]} 58. Rh8 {[%clk 0:00:07]}  Kd4 {[%clk 0:00:21]} 59. Kf2 {[%clk 0:00:06]}  Bf3 {[%clk 0:00:20]} 60. Rd8+ {[%clk 0:00:06]}  Ke5 {[%clk 0:00:20]} 61. Ke3 {[%clk 0:00:07]}  Rxe2+ {[%clk 0:00:20]} 62. Kd3 {[%clk 0:00:07]}  Re4 {[%clk 0:00:19]} 63. Re8+ {[%clk 0:00:06]}  Kf6 {[%clk 0:00:19]} 64. Rh8 {[%clk 0:00:07]}  Kg6 {[%clk 0:00:19]} 65. Rg8+ {[%clk 0:00:07]}  Kh7 {[%clk 0:00:19]} 66. Rg5 {[%clk 0:00:08]}  Kh6 {[%clk 0:00:18]} 67. Rxf5 {[%clk 0:00:09]}  Re1 {[%clk 0:00:18]} 68. Kd2 {[%clk 0:00:09]}  Rg1 {[%clk 0:00:18]} 69. Ke3 {[%clk 0:00:08]}  Rxg3 {[%clk 0:00:17]} 70. Kf2 {[%clk 0:00:08]}  Rg2+ {[%clk 0:00:17]} 71. Kf1 {[%clk 0:00:09]}  Ra2 {[%clk 0:00:17]} 72. Kg1 {[%clk 0:00:08]}  Rd2 {[%clk 0:00:17]} 73. Rf8 {[%clk 0:00:07]}  Kg5 {[%clk 0:00:17]} 74. Rb8 {[%clk 0:00:05]}  Kh4 {[%clk 0:00:17]} 75. Rf8 {[%clk 0:00:04]}  Kg3 {[%clk 0:00:17]} 76. Rf4 {[%clk 0:00:02]}  Rd1# {[%clk 0:00:17]} 0-1


[Site "https://www.chess.com"]

[Event "Titled Tuesday Blitz January 10 Early 2023"]
[White "Stanojevic, Ilija"]
[Black "Fiorito, Francisco"]
[WhiteFideId "959995"]
[BlackFideId "180165"]
[WhiteElo "2142"]
[BlackElo "2305"]
[Result "0-1"]
[Round "08"]
[TimeControl "180+2"]
[Date "2023.01.10"]
[WhiteClock "0:02:02"]
[BlackClock "0:02:22"]

1. d4 {[%clk 0:03:00]}  Nf6 {[%clk 0:02:58]} 2. c4 {[%clk 0:03:00]}  g6 {[%clk 0:02:57]} 3. Nc3 {[%clk 0:03:00]}  d5 {[%clk 0:02:58]} 4. h4 {[%clk 0:03:00]}  h5 {[%clk 0:02:47]} 5. cxd5 {[%clk 0:02:52]}  Nxd5 {[%clk 0:02:45]} 6. e4 {[%clk 0:02:53]}  Nxc3 {[%clk 0:02:45]} 7. bxc3 {[%clk 0:02:54]}  Bg7 {[%clk 0:02:45]} 8. Nf3 {[%clk 0:02:46]}  c5 {[%clk 0:02:45]} 9. Be3 {[%clk 0:02:29]}  Nc6 {[%clk 0:02:41]} 10. Bc4 {[%clk 0:02:18]}  Qa5 {[%clk 0:02:28]} 11. Ng5 {[%clk 0:02:02]}  Qxc3+ {[%clk 0:02:22]} 0-1


[Site "https://www.chess.com"]